fUST/lending_fUST_20240908
["ID","MTS","AMOUNT","RATE_DAILY","PERIOD"]
[337546119,1725805884050,-500.0,0.00048767,120]
[337546120,1725805884060,-500.60856537,0.00048767,120]
[337546121,1725805884071,-500.0,0.00048767,120]
[337546122,1725805884084,-500.0,0.00048767,2]
[337546123,1725805884093,-515.47456615,0.00048767,120]
[337546124,1725805884102,-816.25,0.00048767,120]
[337546125,1725805884111,-500.0,0.00048767,120]
[337546126,1725805884121,-500.0,0.00048767,120]
[337546127,1725805884129,-500.0,0.00048767,120]
[337546128,1725805884139,-331.04162772,0.00048767,120]
[337546129,1725805884148,-500.0,0.00048767,120]
[337546130,1725805884157,-500.0,0.00048767,120]
[337546131,1725805884166,-735.13,0.00048767,7]
[337546132,1725805884175,-500.0,0.00048767,120]
[337546133,1725805884184,-503.51756808,0.00048767,120]
[337546134,1725805884193,-500.0,0.00048767,120]
[337546135,1725805884202,-500.0,0.00048767,120]
[337546136,1725805884212,-500.0,0.00048767,120]
[337546137,1725805884221,-544.41,0.00048767,120]
[337546138,1725805884230,-500.0,0.00048767,120]
[337546139,1725805884239,-500.0,0.00048767,120]
[337546140,1725805884250,-502.03681092,0.00048767,120]
[337546141,1725805884261,-702.53,0.00048767,120]
[337546142,1725805884271,-500.0,0.00048767,120]
[337546143,1725805884281,-2422.66,0.00048767,120]
[337546144,1725805884290,-651.97,0.00048767,120]
[337546145,1725805884299,-912.86,0.00048767,120]
[337546146,1725805884308,-500.0,0.00048767,120]
[337546147,1725805884318,-500.0,0.00048767,120]
[337546148,1725805884329,-500.0,0.00048767,120]
[337546149,1725805884338,-500.0,0.00048767,120]
[337546150,1725805884347,-500.0,0.00048767,120]
[337546151,1725805884357,-500.0,0.00048767,120]
[337546152,1725805884366,-500.0,0.00048767,120]
[337546153,1725805884375,-2604.32,0.00048767,30]
[337546154,1725805884385,-500.0,0.00048767,120]
[337546155,1725805884394,-500.0,0.00048767,120]
[337546156,1725805884403,-547.01016025,0.00048767,120]
[337546157,1725805884413,-712.44,0.00048767,120]
[337546158,1725805884422,-500.0,0.00048767,120]
[337546159,1725805884432,-1268.01,0.00048767,120]
[337546160,1725805884442,-2383.05,0.00048767,120]
[337546161,1725805884452,-500.0,0.00048767,120]
[337546162,1725805884461,-500.0,0.00048767,120]
[337546163,1725805884470,-500.0,0.00048767,120]
[337546164,1725805884479,-500.0,0.00048767,120]
[337546165,1725805884488,-500.0,0.00048767,120]
[337546166,1725805884497,-500.0,0.00048767,20]
[337546167,1725805884506,-500.0,0.00048767,120]
[337546168,1725805884516,-500.0,0.00048767,120]
[337546169,1725805884525,-599.83,0.00048767,120]
[337546170,1725805884535,-500.0,0.00048767,120]
[337546171,1725805884546,-500.0,0.00048767,120]
[337546172,1725805884557,-500.0,0.00048767,120]
[337546173,1725805884568,-638.234115,0.00048767,120]
[337546174,1725805884578,-500.0,0.00048767,120]
[337546175,1725805884587,-500.0,0.00048767,120]
[337546176,1725805884597,-500.0,0.00048767,120]
[337546177,1725805884607,-1639.78,0.00048767,120]
[337546178,1725805884616,-706.48,0.00048767,120]
[337546179,1725805884626,-500.0,0.00048767,120]
[337546180,1725805884635,-500.0,0.00048767,120]
[337546181,1725805884761,-500.0,0.00048767,120]
[337546182,1725805884771,-500.0,0.00048767,120]
[337546183,1725805884780,-500.0,0.00048767,120]
[337546184,1725805884790,-508.2,0.00048767,120]
[337546185,1725805884799,-500.0,0.00048767,120]
[337546186,1725805884808,-500.0,0.00048767,120]
[337546187,1725805884818,-549.45,0.00048767,120]
[337546188,1725805884828,-500.0,0.00048767,120]
[337546189,1725805884837,-1000.0,0.00048767,120]
[337546190,1725805884847,-500.0,0.00048767,120]
[337546191,1725805884856,-500.0,0.00048767,120]
[337546192,1725805884866,-500.0,0.00048767,120]
[337546193,1725805884875,-1099.95,0.00048767,120]
[337546194,1725805884884,-500.0,0.00048767,120]
[337546195,1725805884893,-500.0,0.00048767,120]
[337546196,1725805884903,-500.0,0.00048767,120]
[337546197,1725805884912,-2965.66,0.00048767,120]
[337546198,1725805884921,-274.1771872,0.00048767,120]
[337546199,1725805884930,-500.0,0.00048767,120]
[337546200,1725805884940,-500.0,0.00048767,120]
[337546201,1725805884951,-500.0,0.00048767,120]
[337546202,1725805884962,-514.78463961,0.00048767,120]
[337546203,1725805884971,-500.0,0.00048767,120]
[337546204,1725805884980,-500.0,0.00048767,120]
[337546205,1725805884989,-500.0,0.00048767,120]
[337546206,1725805884999,-500.0,0.00048767,120]
[337546207,1725805885009,-319.78230572,0.00048767,120]
[337546208,1725805885021,-500.58,0.00048767,120]
[337546209,1725805885032,-1019.13,0.00048767,120]
[337546210,1725805885041,-500.0,0.00048767,120]
[337546211,1725805885051,-500.0,0.00048767,120]
[337546212,1725805885060,-500.0,0.00048767,120]
[337546213,1725805885069,-500.0,0.00048767,120]
[337546214,1725805885079,-500.0,0.00048767,120]
[337546215,1725805885088,-500.0,0.00048767,120]
[337546216,1725805885097,-500.0,0.00048767,120]
[337546217,1725805885108,-500.0,0.00048767,120]
[337546218,1725805885119,-500.0,0.00048767,120]
[337546219,1725805885128,-500.0,0.00048767,120]
[337546220,1725805885137,-536.5411183,0.00048767,120]
[337546221,1725805885147,-536.46,0.00048767,120]
[337546222,1725805885157,-500.0,0.00048767,120]
[337546223,1725805885167,-500.0,0.00048767,120]
[337546224,1725805885176,-500.0,0.00048767,120]
[337546225,1725805885185,-956.94,0.00048767,120]
[337546226,1725805885196,-500.0,0.00048767,120]
[337546227,1725805885205,-565.82764609,0.00048767,120]
[337546228,1725805885215,-500.0,0.00048767,120]
[337546229,1725805885225,-2614.93,0.00048767,120]
[337546230,1725805885236,-1258.91,0.00048767,30]
[337546231,1725805885247,-320.9751671,0.00048767,120]
[337546232,1725805885257,-936.51,0.00048767,120]
[337546233,1725805885266,-750.82,0.00048767,120]
[337546234,1725805885275,-500.0,0.00048767,120]
[337546235,1725805885285,-500.0,0.00048767,120]
[337546236,1725805885295,-500.0,0.00048767,120]
[337546237,1725805885305,-500.0,0.00048767,120]
[337546238,1725805885314,-522.24256117,0.00048767,120]
[337546239,1725805885323,-500.0,0.00048767,120]
[337546240,1725805885333,-500.0,0.00048767,120]
[337546241,1725805885342,-500.96,0.00048767,120]
[337546242,1725805885352,-809.49,0.00048767,120]
[337546243,1725805885361,-500.0,0.00048767,120]
[337546244,1725805885370,-500.0,0.00048767,120]
[337546245,1725805885379,-500.0,0.00048767,120]
[337546246,1725805885389,-500.0,0.00048767,120]
[337546247,1725805885398,-500.0,0.00048767,120]
[337546248,1725805885408,-1610.56,0.00048767,2]
[337546249,1725805885417,-500.0,0.00048767,120]
[337546250,1725805885426,-2330.31,0.00048767,120]
[337546251,1725805885436,-500.0,0.00048767,120]
[337546252,1725805885445,-500.0,0.00048767,120]
[337546253,1725805885455,-517.80330162,0.00048767,120]
[337546254,1725805885464,-919.1,0.00048767,120]
[337546255,1725805885474,-500.0,0.00048767,120]
[337546256,1725805885486,-500.0,0.00048767,120]
[337546257,1725805885497,-713.82,0.00048767,120]
[337546258,1725805885508,-1348.0,0.00048767,120]
[337546259,1725805885518,-500.0,0.00048767,120]
[337546260,1725805885528,-500.0,0.00048767,120]
[337546261,1725805885537,-500.0,0.00048767,120]
[337546262,1725805885549,-1215.29,0.00048767,120]
[337546263,1725805885559,-500.0,0.00048767,120]
[337546264,1725805885568,-500.0,0.00048767,120]
[337546265,1725805885578,-500.0,0.00048767,120]
[337546266,1725805885587,-500.0,0.00048767,120]
[337546267,1725805885596,-500.0,0.00048767,120]
[337546268,1725805885605,-500.0,0.00048767,30]
[337546269,1725805885614,-500.0,0.00048767,120]
[337546270,1725805885623,-500.0,0.00048767,120]
[337546271,1725805885633,-8647.46,0.00048767,120]
[337546272,1725805885642,-500.0,0.00048767,120]
[337546273,1725805885652,-500.0,0.00048767,120]
[337546274,1725805885661,-1268.96,0.00048767,120]
[337546275,1725805885671,-905.01,0.00048767,120]
[337546276,1725805885680,-500.0,0.00048767,120]
[337546277,1725805885689,-500.0,0.00048767,120]
[337546278,1725805885699,-632.00464721,0.00048767,120]
[337546279,1725805885708,-500.0,0.00048767,120]
[337546280,1725805885718,-508.1154909,0.00048767,120]
[337546281,1725805885727,-1095.72,0.00048767,120]
[337546282,1725805885736,-500.0,0.00048767,120]
[337546283,1725805885746,-500.0,0.00048767,120]
[337546284,1725805885755,-500.0,0.00048767,120]
[337546285,1725805885765,-500.0,0.00048767,120]
[337546286,1725805885774,-500.0,0.00048767,120]
[337546287,1725805885784,-471.95804147,0.00048767,120]
[337546288,1725805885793,-500.0,0.00048767,120]
[337546289,1725805885803,-500.0,0.00048767,120]
[337546290,1725805885812,-500.0,0.00048767,120]
[337546291,1725805885823,-500.0,0.00048767,120]
[337546292,1725805885835,-500.0,0.00048767,120]
[337546293,1725805885846,-2723.96,0.00048767,120]
[337546294,1725805885857,-3738.38,0.00048767,120]
[337546295,1725805885866,-1760.49,0.00048767,120]
[337546296,1725805885875,-500.0,0.00048767,120]
[337546297,1725805885884,-500.0,0.00048767,120]
[337546298,1725805885894,-500.0,0.00048767,120]
[337546299,1725805885903,-1533.73,0.00048767,7]
[337546300,1725805885912,-500.0,0.00048767,120]
[337546301,1725805885922,-1652.87,0.00048767,120]
[337546302,1725805885931,-560.73446328,0.00048767,120]
[337546303,1725805885941,-500.0,0.00048767,120]
[337546304,1725805885951,-935.82,0.00048767,120]
[337546305,1725805885961,-500.0,0.00048767,2]
[337546306,1725805885970,-495.42317513,0.00048767,7]
[337546307,1725805885979,-990.57,0.00048767,120]
[337546308,1725805885988,-521.90398473,0.00048767,120]
[337546309,1725805885997,-500.0,0.00048767,120]
[337546310,1725805886007,-1634.99,0.00048767,120]
[337546311,1725805886016,-519.20279345,0.00048767,2]
[337546312,1725805886025,-411.10680733,0.00048767,120]
[337546313,1725805886035,-500.0,0.00048767,120]
[337546314,1725805886045,-490.09754719,0.00048767,120]
[337546315,1725805886055,-500.0,0.00048767,120]
[337546316,1725805886064,-276.05016434,0.00048767,120]
[337546317,1725805886073,-500.0,0.00048767,120]
[337546318,1725805886082,-500.0,0.00048767,120]
[337546319,1725805886092,-241.92496969,0.00048767,120]
[337546320,1725805886101,-561.96,0.00048767,120]
[337546321,1725805886114,-1212.44,0.00048767,120]
[337546322,1725805886123,-500.0,0.00048767,120]
[337546323,1725805886132,-999.0,0.00048767,120]
[337546324,1725805886143,-500.0,0.00048767,120]
[337546325,1725805886152,-363.88758011,0.00048767,120]
[337546326,1725805886161,-798.12,0.00048767,120]
[337546327,1725805886170,-639.86,0.00048767,120]
[337546328,1725805886179,-500.0,0.00048767,120]
[337546329,1725805886188,-756.74,0.00048767,120]
[337546330,1725805886197,-500.0,0.00048767,120]
[337546331,1725805886207,-500.0,0.00048767,120]
[337546332,1725805886215,-500.0,0.00048767,120]
[337546333,1725805886225,-500.0,0.00048767,120]
[337546334,1725805886234,-3183.67,0.00048767,120]
[337546335,1725805886243,-500.0,0.00048767,120]
[337546336,1725805886253,-500.0,0.00048767,120]
[337546337,1725805886263,-500.0,0.00048767,120]
[337546338,1725805886273,-1579.24,0.00048767,120]
[337546339,1725805886282,-500.0,0.00048767,120]
[337546340,1725805886291,-1002.7,0.00048767,120]
[337546341,1725805886300,-3855.05,0.00048767,120]
[337546342,1725805886310,-500.0,0.00048767,120]
[337546343,1725805886318,-500.0,0.00048767,120]
[337546344,1725805886327,-1054.78,0.00048767,120]
[337546345,1725805886338,-4259.05,0.00048767,120]
[337546346,1725805886347,-500.0,0.00048767,120]
[337546347,1725805886356,-500.0,0.00048767,120]
[337546348,1725805886365,-500.0,0.00048767,120]
[337546349,1725805886374,-500.0,0.00048767,120]
[337546350,1725805886383,-500.0,0.00048767,120]
[337546351,1725805886392,-2083.33,0.00048767,120]
[337546352,1725805886401,-1317.78,0.00048767,120]
[337546353,1725805886410,-500.0,0.00048767,120]
[337546354,1725805886419,-500.0,0.00048767,120]
[337546355,1725805886429,-1267.76,0.00048767,120]
[337546356,1725805886438,-500.0,0.00048767,120]
[337546357,1725805886446,-500.0,0.00048767,120]
[337546358,1725805886455,-500.0,0.00048767,120]
[337546359,1725805886465,-500.0,0.00048767,120]
[337546360,1725805886474,-3178.06,0.00048767,120]
[337546361,1725805886483,-500.0,0.00048767,120]
[337546362,1725805886493,-5184.01,0.00048767,120]
[337546363,1725805886502,-588.78,0.00048767,120]
[337546364,1725805886511,-535.99,0.00048767,120]
[337546365,1725805886520,-500.0,0.00048767,120]
[337546366,1725805886530,-3023.99,0.00048767,120]
[337546367,1725805886538,-492.83737919,0.00048767,120]
[337546368,1725805886547,-500.0,0.00048767,120]
[337546369,1725805886558,-500.0,0.00048767,120]
[337546370,1725805886567,-500.0,0.00048767,120]
[337546371,1725805886576,-500.0,0.00048767,120]
[337546372,1725805886590,-571.74,0.00048767,120]
[337546373,1725805886604,-538.02523662,0.00048767,10]
[337546374,1725805886613,-500.0,0.00048767,120]
[337546375,1725805886622,-622.8,0.00048767,120]
[337546376,1725805886632,-500.0,0.00048767,120]
[337546377,1725805886641,-1447.48,0.00048767,120]
[337546378,1725805886650,-2095.57,0.00048767,120]
[337546379,1725805886659,-500.0,0.00048767,120]
[337546380,1725805886669,-500.0,0.00048767,120]
[337546381,1725805886789,-4027.69,0.00048767,120]
[337546382,1725805886799,-500.0,0.00048767,120]
[337546383,1725805886808,-500.0,0.00048767,120]
[337546384,1725805886817,-500.0,0.00048767,120]
[337546385,1725805886829,-2650.07,0.00048767,120]
[337546386,1725805886843,-595.50362704,0.00048767,120]
[337546387,1725805886852,-636.12,0.00048767,120]
[337546388,1725805886862,-2388.47,0.00048767,120]
[337546389,1725805886871,-674.33,0.00048767,120]
[337546390,1725805886880,-3583.25,0.00048767,120]
[337546391,1725805886890,-2356.95,0.00048767,120]
[337546392,1725805886900,-521.74266485,0.00048767,120]
[337546393,1725805886910,-1869.76,0.00048767,120]
[337546394,1725805886919,-3073.31,0.00048767,120]
[337546395,1725805886929,-500.0,0.00048767,120]
[337546396,1725805886938,-500.0,0.00048767,120]
[337546397,1725805886948,-500.0,0.00048767,120]
[337546398,1725805886957,-500.0,0.00048767,120]
[337546399,1725805886967,-500.0,0.00048767,120]
[337546400,1725805886976,-500.0,0.00048767,120]
[337546401,1725805886986,-3853.3,0.00048767,120]
[337546402,1725805886995,-7074.82,0.00048767,120]
[337546403,1725805887004,-500.0,0.00048767,120]
[337546404,1725805887014,-644.27,0.00048767,120]
[337546405,1725805887024,-102728.31,0.00048767,120]
[337546406,1725805887034,-23755.79,0.00048767,120]
[337546407,1725805887044,-500.0,0.00048767,120]
[337546408,1725805887053,-500.0,0.00048767,120]
[337546409,1725805887063,-1564.55,0.00048767,120]
[337546410,1725805887073,-606.98,0.00048767,120]
[337546411,1725805887083,-500.0,0.00048767,120]
[337546412,1725805887093,-500.0,0.00048767,120]
[337546413,1725805887103,-2449.96,0.00048767,120]
[337546414,1725805887117,-500.0,0.00048767,120]
[337546415,1725805887127,-500.0,0.00048767,60]
[337546416,1725805887137,-500.0,0.00048767,120]
[337546417,1725805887147,-500.0,0.00048767,120]
[337546418,1725805887158,-500.0,0.00048767,120]
[337546419,1725805887168,-3064.33,0.00048767,120]
[337546420,1725805887178,-500.58,0.00048767,120]
[337546421,1725805887188,-1746.51,0.00048767,120]
[337546422,1725805887198,-500.0,0.00048767,120]
[337546423,1725805887208,-500.0,0.00048767,120]
[337546424,1725805887218,-500.0,0.00048767,120]
[337546425,1725805887227,-500.0,0.00048767,120]
[337546426,1725805887237,-3749.99,0.00048767,21]
[337546427,1725805887247,-9742.51,0.00048767,120]
[337546428,1725805887256,-500.0,0.00048767,120]
[337546429,1725805887267,-13752.81,0.00048767,120]
[337546430,1725805887276,-963.77,0.00048767,120]
[337546431,1725805887285,-500.0,0.00048767,120]
[337546432,1725805887295,-2137.02,0.00048767,120]
[337546433,1725805887304,-703.33,0.00048767,120]
[337546434,1725805887314,-500.0,0.00048767,120]
[337546435,1725805887323,-500.0,0.00048767,120]
[337546436,1725805887333,-1973.22,0.00048767,120]
[337546437,1725805887343,-500.0,0.00048767,120]
[337546438,1725805887353,-14745.27,0.00048767,120]
[337546439,1725805887363,-500.0,0.00048767,120]
[337546440,1725805887372,-500.0,0.00048767,120]
[337546441,1725805887382,-500.0,0.00048767,120]
[337546442,1725805887392,-527.16597094,0.00048767,120]
[337546443,1725805887402,-500.0,0.00048767,120]
[337546444,1725805887411,-5506.22,0.00048767,120]
[337546445,1725805887421,-837.11,0.00048767,120]
[337546446,1725805887431,-500.0,0.00048767,120]
[337546447,1725805887441,-500.0,0.00048767,120]
[337546448,1725805887451,-2101.71,0.00048767,120]
[337546449,1725805887460,-500.0,0.00048767,120]
[337546450,1725805887471,-3357.86,0.00048767,120]
[337546451,1725805887480,-500.0,0.00048767,120]
[337546452,1725805887490,-1071.54,0.00048767,120]
[337546453,1725805887499,-2582.17,0.00048767,120]
[337546454,1725805887509,-500.0,0.00048767,120]
[337546455,1725805887520,-2112.01,0.00048767,120]
[337546456,1725805887530,-500.0,0.00048767,120]
[337546457,1725805887540,-8902.45,0.00048767,120]
[337546458,1725805887552,-500.0,0.00048767,120]
[337546459,1725805887563,-574.17,0.00048767,120]
[337546460,1725805887573,-500.0,0.00048767,120]
[337546461,1725805887583,-23937.12,0.00048767,120]
[337546462,1725805887592,-3412.04,0.00048767,120]
[337546463,1725805887602,-2460.34,0.00048767,120]
[337546464,1725805887611,-500.0,0.00048767,120]
[337546465,1725805887621,-500.0,0.00048767,120]
[337546466,1725805887631,-500.0,0.00048767,120]
[337546467,1725805887641,-1782.06,0.00048767,120]
[337546468,1725805887651,-500.0,0.00048767,2]
[337546469,1725805887661,-500.0,0.00048767,120]
[337546470,1725805887672,-976.47,0.00048767,120]
[337546471,1725805887682,-500.0,0.00048767,120]
[337546472,1725805887692,-1276.39,0.00048767,120]
[337546473,1725805887702,-500.0,0.00048767,120]
[337546474,1725805887714,-500.0,0.00048767,120]
[337546475,1725805887736,-500.0,0.00048767,120]
[337546476,1725805887754,-500.0,0.00048767,120]
[337546477,1725805887772,-500.0,0.00048767,120]
[337546478,1725805887793,-500.0,0.00048767,120]
[337546479,1725805887813,-500.0,0.00048767,120]
[337546480,1725805887832,-500.0,0.00048767,120]
[337546481,1725805887848,-500.0,0.00048767,120]
[337546482,1725805887865,-500.0,0.00048767,120]
[337546483,1725805887884,-500.0,0.00048767,120]
[337546484,1725805887906,-500.0,0.00048767,120]
[337546485,1725805887921,-1603.97,0.00048767,120]
[337546486,1725805887938,-500.0,0.00048767,120]
[337546487,1725805887954,-622.31720727,0.00048767,120]
[337546488,1725805887972,-500.0,0.00048767,120]
[337546489,1725805887987,-500.0,0.00048767,120]
[337546490,1725805888001,-5806.88,0.00048767,120]
[337546491,1725805888016,-500.0,0.00048767,120]
[337546492,1725805888032,-500.0,0.00048767,120]
[337546493,1725805888047,-500.0,0.00048767,120]
[337546494,1725805888063,-500.0,0.00048767,120]
[337546495,1725805888078,-1279.78,0.00048767,120]
[337546496,1725805888095,-534.03,0.00048767,120]
[337546497,1725805888109,-1024.51,0.00048767,120]
[337546498,1725805888124,-500.0,0.00048767,120]
[337546499,1725805888139,-500.0,0.00048767,120]
[337546500,1725805888154,-1275.45,0.00048767,120]
[337546501,1725805888169,-500.0,0.00048767,120]
[337546502,1725805888183,-2254.71,0.00048767,120]
[337546503,1725805888199,-500.0,0.00048767,120]
[337546504,1725805888213,-500.0,0.00048767,120]
[337546505,1725805888229,-3406.69,0.00048767,120]
[337546506,1725805888244,-1262.14,0.00048767,120]
[337546507,1725805888259,-500.0,0.00048767,120]
[337546508,1725805888275,-500.0,0.00048767,120]
[337546509,1725805888290,-582.4,0.00048767,120]
[337546510,1725805888306,-500.0,0.00048767,120]
[337546511,1725805888321,-393.1146868,0.00048767,120]
[337546512,1725805888338,-500.0,0.00048767,120]
[337546513,1725805888353,-500.0,0.00048767,120]
[337546514,1725805888367,-500.0,0.00048767,120]
[337546515,1725805888382,-500.0,0.00048767,30]
[337546516,1725805888396,-14687.42,0.00048767,120]
[337546517,1725805888411,-500.0,0.00048767,120]
[337546518,1725805888426,-500.0,0.00048767,120]
[337546519,1725805888441,-500.0,0.00048767,120]
[337546520,1725805888456,-500.0,0.00048767,120]
[337546521,1725805888471,-500.0,0.00048767,120]
[337546522,1725805888485,-500.0,0.00048767,120]
[337546523,1725805888501,-500.0,0.00048767,120]
[337546524,1725805888516,-5272.46,0.00048767,120]
[337546525,1725805888530,-2811.07,0.00048767,120]
[337546526,1725805888544,-500.0,0.00048767,120]
[337546527,1725805888560,-500.0,0.00048767,2]
[337546528,1725805888575,-500.0,0.00048767,120]
[337546529,1725805888590,-1106.81,0.00048767,120]
[337546530,1725805888605,-504.73,0.00048767,120]
[337546531,1725805888620,-2345.52,0.00048767,120]
[337546532,1725805888635,-500.0,0.00048767,120]
[337546533,1725805888650,-561.96935179,0.00048767,120]
[337546534,1725805888668,-2986.05,0.00048767,120]
[337546535,1725805888683,-5000.0,0.00048767,120]
[337546536,1725805888700,-988.28,0.00048767,120]
[337546537,1725805888715,-500.0,0.00048767,120]
[337546538,1725805888729,-500.0,0.00048767,120]
[337546539,1725805888744,-500.0,0.00048767,120]
[337546540,1725805888758,-774.97,0.00048767,120]
[337546541,1725805888772,-500.0,0.00048767,120]
[337546542,1725805888787,-2940.53,0.00048767,120]
[337546543,1725805888802,-2486.72,0.00048767,120]
[337546544,1725805888816,-500.0,0.00048767,120]
[337546545,1725805888831,-500.92873206,0.00048767,120]
[337546546,1725805888846,-2054.2,0.00048767,120]
[337546547,1725805888862,-395.45780216,0.00048767,120]
[337546548,1725805888876,-3307.1,0.00048767,120]
[337546549,1725805888891,-4017.77,0.00048767,120]
[337546550,1725805888905,-548.39,0.00048767,120]
[337546551,1725805888920,-326.70121166,0.00048767,120]
[337546552,1725805888935,-3267.98,0.00048767,120]
[337546553,1725805888952,-1134.8,0.00048767,120]
[337546554,1725805888968,-4690.76,0.00048767,120]
[337546555,1725805888983,-666.78,0.00048767,120]
[337546556,1725805888998,-500.0,0.00048767,120]
[337546557,1725805889012,-500.0,0.00048767,120]
[337546558,1725805889026,-500.0,0.00048767,120]
[337546559,1725805889040,-950.66,0.00048767,120]
[337546560,1725805889054,-500.0,0.00048767,120]
[337546561,1725805889069,-500.0,0.00048767,120]
[337546562,1725805889083,-876.05,0.00048767,120]
[337546563,1725805889098,-500.0,0.00048767,120]
[337546564,1725805889115,-5751.99,0.00048767,120]
[337546565,1725805889284,-500.0,0.00048767,120]
[337546566,1725805889316,-500.0,0.00048767,120]
[337546567,1725805889326,-500.0,0.00048767,120]
[337546568,1725805889337,-500.0,0.00048767,120]
[337546569,1725805889347,-500.0,0.00048767,120]
[337546570,1725805889357,-500.0,0.00048767,120]
[337546571,1725805889366,-500.0,0.00048767,120]
[337546572,1725805889377,-337.7365135,0.00048767,2]
[337546573,1725805889386,-1000.0,0.00049,120]
[337546574,1725805889396,-50000.0,0.00049,70]
[337546575,1725805889406,-2000.0,0.00049,80]
[337546576,1725805889415,-531.49511175,0.00049,120]
[337546577,1725805889425,-50000.0,0.0004905,80]
[337546578,1725805889434,-50000.0,0.000491,90]
[337546579,1725805889443,-50000.0,0.0004915,90]
[337546580,1725805889453,-2000.0,0.00049192,10]
[337546581,1725805889463,-50000.0,0.0004921,90]
[337546582,1725805889472,-500.0,0.00049315,30]
[337546583,1725805889482,-504.71785841,0.00049315,2]
[337546584,1725805889491,-529.32,0.00049315,60]
[337546585,1725805889502,-151.0,0.00049315,7]
[337546586,1725805889511,-165.853436,0.00049315,7]
[337546587,1725805889522,-800.0,0.00049429,30]
[337546588,1725805889532,-500.0,0.00049863,120]
[337546589,1725805889541,-500.0,0.00049863,120]
[337546590,1725805889551,-352.48266484,0.00049863,120]
[337546591,1725805889561,-500.0,0.00049863,120]
[337546592,1725805889570,-500.0,0.00049863,120]
[337546593,1725805889580,-501.6736564,0.00049863,120]
[337546594,1725805889590,-500.0,0.00049863,120]
[337546595,1725805889599,-502.41875142,0.00049863,120]
[337546596,1725805889608,-500.0,0.00049863,120]
[337546597,1725805889617,-500.0,0.00049863,120]
[337546598,1725805889626,-500.0,0.00049863,120]
[337546599,1725805889636,-500.0,0.00049863,120]
[337546600,1725805889645,-500.0,0.00049863,120]
[337546601,1725805889655,-500.0,0.00049863,120]
[337546602,1725805889665,-500.0,0.00049863,120]
[337546603,1725805889675,-500.0,0.00049863,120]
[337546604,1725805889687,-500.0,0.00049863,120]
[337546605,1725805889697,-500.0,0.00049863,120]
[337546606,1725805889708,-500.0,0.00049863,120]
[337546607,1725805889719,-500.0,0.00049863,120]
[337546608,1725805889729,-500.0,0.00049863,60]
[337546609,1725805889740,-500.0,0.00049863,120]
[337546610,1725805889750,-500.0,0.00049863,120]
[337546611,1725805889761,-500.0,0.00049863,120]
[337546612,1725805889771,-673.59,0.00049863,120]
[337546613,1725805889781,-911.08,0.00049863,120]
[337546614,1725805889793,-498.90438196,0.00049863,120]
[337546615,1725805889803,-500.0,0.00049863,120]
[337546616,1725805889814,-500.0,0.00049863,120]
[337546617,1725805889826,-500.0,0.00049863,120]
[337546618,1725805889842,-629.21,0.00049863,120]